bitfinex/quotes_BTCUSD_20240927
["timestamp","ask_amount","ask_price","bid_price","bid_amount"]
[1727439241502,0.48561999,65620.0,65619.0,0.000308]
[1727439241701,0.49861999,65620.0,65619.0,0.002308]
[1727439241922,0.49161999,65620.0,65619.0,0.001308]
[1727439242077,0.48561999,65620.0,65619.0,0.000308]
[1727439242283,0.49261999,65620.0,65619.0,0.001308]
[1727439242516,0.49861999,65620.0,65619.0,0.002308]
[1727439244257,0.50861999,65620.0,65619.0,0.002308]
[1727439244479,0.70528344,65620.0,65619.0,0.002308]
[1727439245171,0.70528344,65620.0,65616.0,0.001654]
[1727439245172,0.266599,65617.0,65616.0,0.001654]
[1727439245388,0.50078694,65617.0,65616.0,0.001654]
[1727439245604,0.52258845,65606.0,65605.0,0.22882422]
[1727439245826,0.67787639,65606.0,65605.0,0.22882422]
[1727439246288,0.152441,65599.0,65598.0,0.22882422]
[1727439246541,0.30772894,65599.0,65598.0,0.22882422]
[1727439246807,0.15528794,65599.0,65592.0,0.304914]
[1727439247045,0.152446,65597.0,65593.0,0.152455]
[1727439247289,0.15528794,65596.0,65593.0,0.152455]
[1727439248364,0.15528794,65596.0,65592.0,0.304912]
[1727439248587,0.16728794,65596.0,65589.0,0.1]
[1727439248782,0.16728794,65596.0,65595.0,0.15245]
[1727439249038,0.16728794,65596.0,65593.0,0.152453]
[1727439249233,0.16128794,65596.0,65593.0,0.152453]
[1727439249449,0.15528794,65596.0,65593.0,0.152453]
[1727439249653,0.16128794,65596.0,65595.0,0.15245]
[1727439249863,0.16128794,65596.0,65593.0,0.45736]
[1727439250067,0.16128794,65596.0,65594.0,0.152451]
[1727439250546,0.16128794,65596.0,65595.0,0.15245]
[1727439250733,0.15528794,65596.0,65595.0,0.15245]
[1727439251000,0.15528794,65596.0,65594.0,0.152452]
[1727439251206,0.16128794,65596.0,65594.0,0.152452]
[1727439251543,0.16728794,65596.0,65594.0,0.152452]
[1727439251745,0.16128794,65596.0,65594.0,0.152452]
[1727439252599,0.16728794,65596.0,65594.0,0.152452]
[1727439252784,0.16728794,65596.0,65592.0,0.304912]
[1727439253176,0.16728794,65596.0,65593.0,0.304909]
[1727439253583,0.16728794,65596.0,65594.0,0.001654]
[1727439254593,0.15528794,65596.0,65594.0,0.001654]
[1727439254942,0.16128794,65596.0,65594.0,0.001654]
[1727439255542,0.16128794,65596.0,65594.0,0.154105]
[1727439256091,0.16728794,65596.0,65594.0,0.154105]
[1727439256330,0.16728794,65596.0,65595.0,0.15245]
[1727439256951,0.16728794,65596.0,65594.0,0.001654]
[1727439257126,0.16728794,65596.0,65594.0,0.154105]
[1727439257332,0.16728794,65596.0,65595.0,0.15245]
[1727439257641,0.16128794,65596.0,65595.0,0.15245]
[1727439258069,0.16728794,65596.0,65595.0,0.15245]
[1727439258272,0.16728794,65596.0,65594.0,0.154105]
[1727439258473,0.16728794,65596.0,65594.0,0.001654]
[1727439258854,0.16728794,65596.0,65594.0,0.154106]
[1727439259076,0.16128794,65596.0,65594.0,0.154106]
[1727439259478,0.15528794,65596.0,65594.0,0.154106]
[1727439259685,0.16128794,65596.0,65594.0,0.154106]
[1727439259864,0.16728794,65596.0,65594.0,0.154106]
[1727439260497,0.16728794,65596.0,65594.0,0.001654]
[1727439261582,0.16728794,65596.0,65595.0,0.15245]
[1727439261784,0.16728794,65596.0,65594.0,0.001654]
[1727439262374,0.16128794,65596.0,65594.0,0.001654]
[1727439262617,0.30773794,65596.0,65594.0,0.001654]
[1727439262821,0.31973794,65596.0,65594.0,0.001654]
[1727439263201,0.31373794,65596.0,65594.0,0.001654]
[1727439264685,0.16728794,65596.0,65594.0,0.001654]
[1727439264889,0.16128794,65596.0,65594.0,0.001654]
[1727439265087,0.16128794,65596.0,65595.0,0.001654]
[1727439265296,0.16728794,65596.0,65595.0,0.001654]
[1727439265732,0.16728794,65596.0,65595.0,0.154104]
[1727439265909,0.16128794,65596.0,65595.0,0.001654]
[1727439266240,0.16028794,65596.0,65595.0,0.001654]
[1727439266852,0.31273594,65596.0,65595.0,0.001654]
[1727439267705,0.31873594,65596.0,65595.0,0.001654]
[1727439271764,0.16628794,65596.0,65595.0,0.001654]
[1727439271943,0.16628794,65596.0,65595.0,0.154104]
[1727439272619,0.011,65596.0,65595.0,0.154104]
[1727439272840,0.011,65596.0,65595.0,0.271804]
[1727439273054,0.011,65596.0,65595.0,0.2905554]
[1727439273615,0.006,65596.0,65595.0,0.2905554]
[1727439273791,0.012,65596.0,65595.0,0.2905554]
[1727439273995,0.006,65596.0,65595.0,0.2905554]
[1727439274228,0.012,65596.0,65595.0,0.2905554]
[1727439274602,0.006,65596.0,65595.0,0.2905554]
[1727439274805,0.007,65596.0,65595.0,0.2905554]
[1727439275102,0.30967422,65608.0,65595.0,0.1381054]
[1727439275103,0.30485,65606.0,65595.0,0.1381054]
[1727439275312,0.152429,65604.0,65600.0,0.152437]
[1727439275506,0.15528794,65603.0,65600.0,0.152437]
[1727439276434,0.15528794,65603.0,65595.0,0.329551]
[1727439276435,0.30771994,65603.0,65595.0,0.329551]
[1727439276691,0.152434,65602.0,65598.0,0.152443]
[1727439277050,0.152434,65602.0,65597.0,0.30489]
[1727439277457,0.152434,65602.0,65598.0,0.152442]
[1727439277877,0.156434,65602.0,65598.0,0.152442]
[1727439278844,0.160434,65602.0,65598.0,0.152442]
[1727439279432,0.15528794,65601.0,65595.0,0.329551]
[1727439279637,0.152446,65597.0,65595.0,0.001654]
[1727439279838,0.30773594,65596.0,65595.0,0.001654]
[1727439280611,0.15528794,65596.0,65595.0,0.001654]
[1727439281209,0.16328794,65596.0,65595.0,0.001654]
[1727439282648,0.17028794,65596.0,65595.0,0.001654]
[1727439282988,0.32273594,65596.0,65595.0,0.001654]
[1727439284974,0.49873594,65596.0,65595.0,0.001654]
[1727439285199,0.69337315,65596.0,65595.0,0.001654]
[1727439285429,0.49873594,65596.0,65595.0,0.001654]
[1727439285859,0.49173594,65596.0,65595.0,0.001654]
[1727439286821,0.49973594,65596.0,65595.0,0.001654]
[1727439287022,0.49173594,65596.0,65595.0,0.001654]
[1727439287198,0.48373594,65596.0,65595.0,0.001654]
[1727439287454,0.49273594,65596.0,65595.0,0.001654]
[1727439287661,0.48373594,65596.0,65595.0,0.001654]
[1727439287930,0.49773594,65596.0,65595.0,0.001654]
[1727439288403,0.48373594,65596.0,65595.0,0.001654]
[1727439288609,0.51073594,65596.0,65595.0,0.001654]
[1727439289028,0.49673594,65596.0,65595.0,0.001654]
[1727439289421,0.50873594,65596.0,65595.0,0.001654]
[1727439289639,0.41003594,65596.0,65595.0,0.001654]
[1727439289837,0.33273594,65596.0,65595.0,0.001654]
[1727439295260,0.27973594,65596.0,65595.0,0.001654]
[1727439301755,0.025,65596.0,65595.0,0.154104]
[1727439301982,0.025,65596.0,65595.0,0.258704]
[1727439302604,0.025,65596.0,65595.0,0.177104]
[1727439302814,0.013,65596.0,65595.0,0.177104]
[1727439303014,0.01283506,65596.0,65595.0,0.177104]
[1727439303217,0.000828,65599.0,65596.0,0.023]
[1727439303425,0.000828,65599.0,65598.0,0.023]
[1727439303633,0.000828,65599.0,65598.0,0.175443]
[1727439304652,0.007828,65599.0,65598.0,0.175443]
[1727439305082,0.013828,65599.0,65598.0,0.175443]
[1727439307623,0.013828,65599.0,65598.0,0.30322644]
[1727439307828,0.013828,65599.0,65598.0,0.67741135]
[1727439308028,0.013828,65599.0,65598.0,0.58312644]
[1727439308356,0.013828,65599.0,65598.0,0.69701459]
[1727439308765,0.007828,65599.0,65598.0,0.69701459]
[1727439308941,0.007828,65599.0,65598.0,0.69700949]
[1727439309153,0.007828,65599.0,65598.0,0.58698431]
[1727439309330,0.007828,65599.0,65598.0,0.70083596]
[1727439309525,0.000828,65599.0,65598.0,0.70083596]
[1727439310142,0.000828,65599.0,65598.0,0.58698431]
[1727439310598,0.001828,65599.0,65598.0,0.67802887]
[1727439310967,0.001828,65599.0,65598.0,0.58698431]
[1727439311190,0.001828,65599.0,65598.0,0.67801108]
[1727439311355,0.002828,65599.0,65598.0,0.67901108]
[1727439311877,0.002828,65599.0,65598.0,1.76884125]
[1727439312031,0.002828,65599.0,65598.0,2.75821225]
[1727439312443,0.002828,65599.0,65598.0,2.8249564]
[1727439312890,0.002828,65599.0,65598.0,2.96138304]
[1727439313103,0.002828,65599.0,65598.0,2.8249564]
[1727439313244,0.002828,65599.0,65598.0,2.5209924]
[1727439313447,0.002828,65599.0,65598.0,2.2806174]
[1727439313900,0.002828,65599.0,65598.0,1.70153681]
[1727439314100,0.002828,65599.0,65598.0,1.8420134]
[1727439314318,0.002828,65599.0,65598.0,1.67335045]
[1727439314667,0.002828,65599.0,65598.0,0.74566102]
[1727439314847,0.002828,65599.0,65598.0,0.46020087]
[1727439315085,0.002828,65599.0,65598.0,0.456343]
[1727439315292,0.002828,65599.0,65598.0,0.153443]
[1727439316564,0.001828,65599.0,65598.0,0.152443]
[1727439316769,0.000828,65599.0,65598.0,0.275443]
[1727439317041,0.00051904,65599.0,65598.0,0.275443]
[1727439317328,0.00051904,65599.0,65598.0,0.1]
[1727439317329,0.15580698,65599.0,65598.0,0.1]
[1727439317564,0.15580698,65599.0,65595.0,0.001654]
[1727439317565,0.15580698,65599.0,65595.0,0.154103]
[1727439317831,0.15580698,65599.0,65595.0,0.001654]
[1727439318062,0.15580698,65599.0,65598.0,0.152443]
[1727439318063,0.00051904,65599.0,65598.0,0.152443]
[1727439318336,0.00051904,65599.0,65598.0,0.34697059]
[1727439318597,0.00051904,65599.0,65598.0,0.36997059]
[1727439318820,0.00551904,65599.0,65598.0,0.36997059]
[1727439319163,0.00551904,65599.0,65598.0,0.175443]
[1727439319981,0.00051904,65599.0,65598.0,0.175443]
[1727439320179,0.00051904,65599.0,65598.0,0.46997059]
[1727439320180,0.00251904,65599.0,65598.0,0.46997059]
[1727439320378,0.00451904,65599.0,65598.0,0.46997059]
[1727439322866,0.00251904,65599.0,65598.0,0.46997059]
[1727439323432,0.00451904,65599.0,65598.0,0.46997059]
[1727439323631,0.00251904,65599.0,65598.0,0.46997059]
[1727439324772,0.00051904,65599.0,65598.0,0.46997059]
[1727439332650,0.00051904,65599.0,65598.0,0.275443]
[1727439336223,0.00051904,65599.0,65598.0,0.277099]
[1727439336440,0.07771904,65599.0,65598.0,0.254099]
[1727439336642,0.07771904,65599.0,65598.0,0.001656]
[1727439336643,0.23300698,65599.0,65598.0,0.001656]
[1727439336876,0.23300698,65599.0,65598.0,0.101656]
[1727439337918,0.23400698,65599.0,65598.0,0.101656]
[1727439338278,0.23400698,65599.0,65598.0,0.001656]
[1727439339083,0.23400698,65599.0,65598.0,0.154099]
[1727439339291,0.23500698,65599.0,65598.0,0.154099]
[1727439340155,0.23500698,65599.0,65598.0,0.001656]
[1727439341419,0.48604798,65599.0,65598.0,0.001656]
[1727439342039,0.48504798,65599.0,65598.0,0.001656]
[1727439342469,0.49204798,65599.0,65598.0,0.001656]
[1727439342876,0.49104798,65599.0,65598.0,0.001656]
[1727439343312,0.49904798,65599.0,65598.0,0.001656]
[1727439343517,0.49304798,65599.0,65598.0,0.001656]
[1727439343717,0.50504798,65599.0,65598.0,0.001656]
[1727439344218,0.49804798,65599.0,65598.0,0.001656]
[1727439344694,0.51104798,65599.0,65598.0,0.001656]
[1727439346767,0.51604798,65599.0,65598.0,0.001656]
[1727439347202,0.50304798,65599.0,65598.0,0.001656]
[1727439347370,0.48904798,65599.0,65598.0,0.001656]
[1727439347601,0.51704798,65599.0,65598.0,0.001656]
[1727439348015,0.48904798,65599.0,65598.0,0.001656]
[1727439348709,0.50304798,65599.0,65598.0,0.001656]
[1727439349401,0.51704798,65599.0,65598.0,0.001656]
[1727439355425,0.7577222,65599.0,65598.0,0.001656]
[1727439355596,0.52904798,65599.0,65598.0,0.001656]
[1727439355802,0.169448,65596.0,65595.0,0.001654]
[1727439356034,0.68906353,65596.0,65595.0,0.001654]
[1727439356686,0.68906353,65596.0,65587.0,0.001654]
[1727439356687,0.51961553,65596.0,65587.0,0.001654]
[1727439356922,0.64029359,65588.0,65587.0,0.001654]
[1727439358674,0.65429359,65588.0,65587.0,0.001654]
[1727439359331,0.66829359,65588.0,65587.0,0.001654]
[1727439359564,0.69219674,65588.0,65587.0,0.001654]
[1727439360698,0.84748468,65588.0,65587.0,0.001654]
[1727439360948,0.86657122,65588.0,65587.0,0.001654]
[1727439361446,0.86657122,65588.0,65574.0,0.22870212]
[1727439361447,0.167487,65579.0,65574.0,0.22870212]
[1727439361695,0.69040253,65579.0,65574.0,0.22870212]
[1727439362903,0.70440253,65579.0,65574.0,0.22870212]
[1727439363152,0.71639017,65579.0,65574.0,0.22870212]
[1727439363392,0.72025857,65579.0,65574.0,0.22870212]
[1727439363629,0.73425857,65579.0,65574.0,0.22870212]
[1727439363862,0.74825857,65579.0,65574.0,0.22870212]
[1727439364117,0.74825857,65579.0,65569.0,0.002]
[1727439364356,0.73425857,65579.0,65569.0,0.002]
[1727439364838,0.74825857,65579.0,65569.0,0.002]
[1727439369471,0.342008,65570.0,65569.0,0.002]
[1727439369708,0.342008,65570.0,65557.0,0.001656]
[1727439369709,0.015,65559.0,65557.0,0.001656]
[1727439369948,0.69044953,65559.0,65557.0,0.001656]
[1727439370210,0.69244953,65559.0,65557.0,0.001656]
[1727439370439,0.169536,65558.0,65557.0,0.001656]
[1727439370672,0.32282394,65558.0,65557.0,0.001656]
[1727439370900,0.32482394,65558.0,65557.0,0.001656]
[1727439371366,0.73012606,65558.0,65557.0,0.001656]
[1727439371597,0.50142394,65558.0,65557.0,0.001656]
[1727439371842,0.671812,65558.0,65557.0,0.001656]
[1727439372542,0.52942394,65558.0,65557.0,0.001656]
[1727439372779,0.51542394,65558.0,65557.0,0.001656]
[1727439373074,0.52942394,65558.0,65557.0,0.001656]
[1727439373311,0.35082394,65558.0,65557.0,0.001656]
[1727439373796,0.37473682,65558.0,65557.0,0.001656]
[1727439374056,0.36073682,65558.0,65557.0,0.001656]
[1727439374289,0.43066344,65558.0,65557.0,0.001656]
[1727439374509,0.36473682,65558.0,65557.0,0.001656]
[1727439374738,0.30782394,65558.0,65557.0,0.001656]
[1727439374967,0.33582394,65558.0,65557.0,0.001656]
[1727439375427,0.30782394,65558.0,65557.0,0.001656]
[1727439375711,0.32182394,65558.0,65557.0,0.001656]
[1727439376176,0.33782394,65558.0,65557.0,0.001656]
[1727439378674,0.62812394,65558.0,65557.0,0.001656]
[1727439380909,0.61412394,65558.0,65557.0,0.001656]
[1727439381142,0.60012394,65558.0,65557.0,0.001656]
[1727439381403,0.62812394,65558.0,65557.0,0.001656]
[1727439381666,0.784512,65558.0,65557.0,0.001656]
[1727439382939,1.01321412,65558.0,65557.0,0.001656]
[1727439383181,0.55637259,65554.0,65553.0,1e-06]
[1727439383478,0.79236053,65554.0,65553.0,1e-06]
[1727439383735,0.94874859,65554.0,65553.0,1e-06]
[1727439383972,0.365569,65544.0,65543.0,0.002037]
[1727439384252,0.71538453,65544.0,65543.0,0.002037]
[1727439385412,0.72938453,65544.0,65543.0,0.002037]
[1727439385638,0.74338453,65544.0,65543.0,0.002037]
[1727439385862,0.88113935,65544.0,65543.0,0.002037]
[1727439387352,0.95943935,65544.0,65543.0,0.002037]
[1727439387797,0.95943935,65544.0,65524.0,0.0955]
[1727439387798,0.36411459,65536.0,65533.0,0.22870212]
[1727439388012,0.61940253,65536.0,65533.0,0.22870212]
[1727439388243,0.86869188,65536.0,65532.0,0.001654]
[1727439388477,0.94859188,65536.0,65532.0,0.001654]
[1727439389148,0.96259188,65536.0,65532.0,0.001654]
[1727439389808,0.63240253,65536.0,65532.0,0.001654]
[1727439390307,0.64640253,65536.0,65532.0,0.001654]
[1727439390797,0.63240253,65536.0,65532.0,0.001654]
[1727439391230,0.43787494,65536.0,65532.0,0.001654]
[1727439391474,0.33587494,65536.0,65532.0,0.001654]
[1727439391742,0.32187494,65536.0,65532.0,0.001654]
[1727439391960,0.33587494,65536.0,65532.0,0.001654]
[1727439392174,0.30787494,65536.0,65532.0,0.001654]
[1727439392596,0.32187494,65536.0,65532.0,0.001654]
[1727439392803,0.30787494,65536.0,65532.0,0.001654]
[1727439393449,0.32187494,65536.0,65532.0,0.001654]
[1727439393664,0.33873944,65536.0,65532.0,0.001654]
[1727439393876,0.51926703,65536.0,65532.0,0.001654]
[1727439394318,0.54992303,65536.0,65532.0,0.001654]
[1727439394789,0.53592303,65536.0,65532.0,0.001654]
[1727439395008,0.52192303,65536.0,65532.0,0.001654]
[1727439395228,0.50405853,65536.0,65532.0,0.001654]
[1727439395456,0.51805853,65536.0,65532.0,0.001654]
[1727439395688,0.53205853,65536.0,65532.0,0.001654]
[1727439395934,0.76076065,65536.0,65532.0,0.001654]
[1727439396198,0.69444659,65536.0,65532.0,0.001654]
[1727439396713,0.53705853,65536.0,65532.0,0.001654]
[1727439396997,0.52405853,65536.0,65532.0,0.001654]
[1727439397221,0.53744042,65536.0,65532.0,0.001654]
[1727439397483,0.52244042,65536.0,65532.0,0.001654]
[1727439397723,0.52344042,65536.0,65532.0,0.001654]
[1727439397964,0.53744042,65536.0,65532.0,0.001654]
[1727439398437,0.50944042,65536.0,65532.0,0.001654]
[1727439398711,0.52344042,65536.0,65532.0,0.001654]
[1727439398919,0.33691283,65536.0,65532.0,0.001654]
[1727439399837,0.33691283,65536.0,65535.0,0.078454]
[1727439400282,0.32291283,65536.0,65535.0,0.078454]
[1727439400497,0.30891283,65536.0,65535.0,0.078454]
[1727439400721,0.32291283,65536.0,65535.0,0.078454]
[1727439401010,0.029656,65536.0,65535.0,0.176954]
[1727439401231,0.015656,65536.0,65535.0,0.176954]
[1727439401451,0.029656,65536.0,65535.0,0.199954]
[1727439401674,0.015656,65536.0,65535.0,0.199954]
[1727439401894,0.015656,65536.0,65535.0,0.200954]
[1727439402116,0.015656,65536.0,65535.0,0.353544]
[1727439402364,0.001656,65536.0,65535.0,0.200954]
[1727439403453,0.164243,65536.0,65535.0,0.200954]
[1727439403684,0.31953094,65536.0,65535.0,0.176954]
[1727439403889,0.31853094,65536.0,65535.0,0.176954]
[1727439404096,0.31653094,65536.0,65535.0,0.176954]
[1727439404320,0.31653094,65536.0,65535.0,0.078454]
[1727439405003,0.32353094,65536.0,65535.0,0.078454]
[1727439406360,0.32334738,65536.0,65535.0,0.078454]
[1727439407382,0.32334738,65536.0,65535.0,0.001654]
[1727439407962,0.51787497,65536.0,65535.0,0.001654]
[1727439408395,0.32334738,65536.0,65535.0,0.001654]
[1727439409253,0.32834738,65536.0,65535.0,0.001654]
[1727439409467,0.64523507,65536.0,65535.0,0.001654]
[1727439409869,0.52287497,65536.0,65535.0,0.001654]
[1727439410323,0.51587497,65536.0,65535.0,0.001654]
[1727439410758,0.52287497,65536.0,65535.0,0.001654]
[1727439410971,0.53687497,65536.0,65535.0,0.001654]
[1727439411187,0.52287497,65536.0,65535.0,0.001654]
[1727439411432,0.32834738,65536.0,65535.0,0.001654]
[1727439411828,0.31434738,65536.0,65535.0,0.001654]
[1727439412049,0.32834738,65536.0,65535.0,0.001654]
[1727439412259,0.34234738,65536.0,65535.0,0.001654]
[1727439412717,0.33734738,65536.0,65535.0,0.001654]
[1727439413022,0.34234738,65536.0,65535.0,0.001654]
[1727439413260,0.33734738,65536.0,65535.0,0.001654]
[1727439416035,0.46600748,65536.0,65535.0,0.001654]
[1727439416888,0.45200748,65536.0,65535.0,0.001654]
[1727439417117,0.46200748,65536.0,65535.0,0.001654]
[1727439417344,0.35234738,65536.0,65535.0,0.001654]
[1727439417593,0.33834738,65536.0,65535.0,0.001654]
[1727439418589,0.35234738,65536.0,65535.0,0.001654]
[1727439422668,0.35334738,65536.0,65535.0,0.001654]
[1727439422897,0.50873544,65536.0,65535.0,0.001654]
[1727439423613,0.55443013,65536.0,65535.0,0.001654]
[1727439423835,0.50873544,65536.0,65535.0,0.001654]
[1727439424554,0.35334738,65536.0,65535.0,0.001654]
[1727439424800,0.35234738,65536.0,65535.0,0.001654]
[1727439425154,0.35334738,65536.0,65535.0,0.001654]
[1727439425362,0.42188942,65536.0,65535.0,0.001654]
[1727439426160,0.60368942,65536.0,65535.0,0.001654]
[1727439426382,0.87552482,65536.0,65535.0,0.001654]
[1727439426599,0.78413544,65536.0,65535.0,0.001654]
[1727439427074,0.92121952,65536.0,65535.0,0.001654]
[1727439427291,0.77013544,65536.0,65535.0,0.001654]
[1727439427733,0.90727839,65536.0,65535.0,0.001654]
[1727439427951,1.06797839,65536.0,65535.0,0.001654]
[1727439428172,0.25692,65522.0,65505.0,0.0778]
[1727439428394,0.68663553,65522.0,65505.0,0.0778]
[1727439429078,0.68663553,65522.0,65510.0,0.22870212]
[1727439429353,0.69663553,65522.0,65510.0,0.22870212]
[1727439429586,0.80205514,65522.0,65510.0,0.22870212]
[1727439429815,0.77917216,65522.0,65510.0,0.22870212]
[1727439430043,0.88035917,65522.0,65510.0,0.22870212]
[1727439430269,0.8982867,65522.0,65510.0,0.22870212]
[1727439430549,0.89826251,65522.0,65510.0,0.22870212]
[1727439430774,0.88426251,65522.0,65510.0,0.22870212]
[1727439431000,0.7970755,65522.0,65510.0,0.22870212]
[1727439431222,0.77914797,65522.0,65510.0,0.22870212]
[1727439431445,0.69663553,65522.0,65510.0,0.22870212]
[1727439431669,0.71063553,65522.0,65510.0,0.22870212]
[1727439431920,0.69663553,65522.0,65510.0,0.22870212]
[1727439432411,0.75629454,65522.0,65510.0,0.22870212]
[1727439432663,0.74229454,65522.0,65510.0,0.22870212]
[1727439432873,0.75629454,65522.0,65510.0,0.22870212]
[1727439433361,0.74229454,65522.0,65510.0,0.22870212]
[1727439433593,0.71063553,65522.0,65510.0,0.22870212]
[1727439434535,0.85924391,65522.0,65510.0,0.22870212]
[1727439434770,0.84524391,65522.0,65510.0,0.22870212]
[1727439435238,0.85924391,65522.0,65510.0,0.22870212]
[1727439435731,0.84524391,65522.0,65510.0,0.22870212]
[1727439436219,0.85924391,65522.0,65510.0,0.22870212]
[1727439437465,0.72463553,65522.0,65510.0,0.22870212]
[1727439437924,0.82463553,65522.0,65502.0,0.22870212]
[1727439438622,0.267639,65514.0,65513.0,0.22870212]
[1727439438833,0.152664,65503.0,65502.0,0.18283912]
[1727439439069,0.30795194,65503.0,65502.0,0.18283912]
[1727439439304,0.152667,65502.0,65501.0,0.005]
[1727439439567,0.30795494,65502.0,65501.0,0.005]
[1727439441346,0.32195494,65502.0,65501.0,0.005]
[1727439442195,0.85194925,65502.0,65501.0,0.005]
[1727439442419,0.55124713,65502.0,65501.0,0.005]
[1727439442626,0.56524713,65502.0,65501.0,0.005]
[1727439443535,0.55124713,65502.0,65501.0,0.005]
[1727439444432,0.56524713,65502.0,65501.0,0.005]
[1727439444667,0.80394925,65502.0,65501.0,0.005]
[1727439444950,0.57524713,65502.0,65501.0,0.005]
[1727439445364,0.90204925,65502.0,65501.0,0.005]
[1727439445588,0.75674713,65502.0,65501.0,0.005]
[1727439445824,0.74274713,65502.0,65501.0,0.005]
[1727439446254,0.75674713,65502.0,65501.0,0.005]
[1727439446684,0.72874713,65502.0,65501.0,0.005]
[1727439447100,0.75674713,65502.0,65501.0,0.005]
[1727439448419,0.53335494,65502.0,65501.0,0.005]
[1727439448879,0.53435494,65502.0,65501.0,0.005]
[1727439449308,0.5582898,65502.0,65501.0,0.005]
[1727439451777,0.78317472,65502.0,65501.0,0.005]
[1727439452522,0.80710863,65502.0,65501.0,0.005]
[1727439452994,0.80610863,65502.0,65501.0,0.005]
[1727439453215,0.80710863,65502.0,65501.0,0.005828]
[1727439453446,0.80610863,65502.0,65501.0,0.005828]
[1727439453659,0.47488885,65502.0,65501.0,0.005828]
[1727439454619,0.47457961,65502.0,65501.0,0.005828]
[1727439454866,0.6701072,65502.0,65501.0,0.005828]
[1727439456025,0.66949027,65502.0,65501.0,0.005828]
[1727439456797,0.66849027,65502.0,65501.0,0.005828]
[1727439458202,0.89719239,65502.0,65501.0,0.005828]
[1727439458459,0.66849027,65502.0,65501.0,0.005828]
[1727439458928,0.65449027,65502.0,65501.0,0.005828]
[1727439459161,0.69988943,65502.0,65501.0,0.005828]
[1727439459391,0.68588943,65502.0,65501.0,0.005828]
[1727439459598,0.70088943,65502.0,65501.0,0.005828]
[1727439460124,0.68688943,65502.0,65501.0,0.005828]
[1727439460364,0.69988943,65502.0,65501.0,0.005828]
[1727439461160,0.66818317,65502.0,65501.0,0.005828]
[1727439461607,0.46865558,65502.0,65501.0,0.005828]
[1727439462268,0.46365558,65502.0,65501.0,0.005828]
[1727439462495,0.47365558,65502.0,65501.0,0.005828]
[1727439463124,0.46365558,65502.0,65501.0,0.005828]
[1727439463333,0.46865558,65502.0,65501.0,0.005828]
[1727439463835,0.47365558,65502.0,65501.0,0.005828]
[1727439464401,0.47365558,65502.0,65490.0,0.22169346]
[1727439464402,0.152692,65491.0,65490.0,0.22169346]
[1727439464608,0.30797994,65491.0,65490.0,0.22169346]
[1727439464833,0.152697,65489.0,65482.0,0.22870212]
[1727439465020,0.30798494,65489.0,65482.0,0.22870212]
[1727439465569,0.30798494,65489.0,65481.0,0.38141712]
[1727439465773,0.30798494,65489.0,65483.0,0.152711]
[1727439466003,0.30798494,65489.0,65481.0,0.22870212]
[1727439466133,0.30798494,65489.0,65481.0,0.38141712]
[1727439466328,0.32198494,65489.0,65481.0,0.22870212]
[1727439466760,0.33598494,65489.0,65481.0,0.22870212]
[1727439467143,0.33567613,65489.0,65481.0,0.22870212]
[1727439467555,0.33567613,65489.0,65480.0,0.38141812]
[1727439469201,0.33567613,65489.0,65480.0,0.22870212]
[1727439469808,0.33567613,65489.0,65479.0,0.22870212]
[1727439470242,0.152699,65488.0,65484.0,0.0757]
[1727439470470,0.30798694,65488.0,65484.0,0.0757]
[1727439471317,0.32198694,65488.0,65487.0,0.000828]
[1727439472145,0.33498694,65488.0,65487.0,0.000828]
[1727439472557,0.38498694,65488.0,65487.0,0.000828]
[1727439473767,0.38478694,65488.0,65487.0,0.000828]
[1727439479913,0.94327794,65488.0,65487.0,0.000828]
[1727439480116,0.71457582,65488.0,65487.0,0.000828]
[1727439480352,0.71426773,65488.0,65487.0,0.000828]
[1727439480555,0.58400644,65488.0,65487.0,0.000828]
[1727439483318,0.58500644,65488.0,65487.0,0.000828]
[1727439483566,0.58400644,65488.0,65487.0,0.000828]
[1727439484007,0.58500644,65488.0,65487.0,0.000828]
[1727439484385,0.58400644,65488.0,65487.0,0.000828]
[1727439484591,0.58500644,65488.0,65487.0,0.000828]
[1727439485033,0.7413945,65488.0,65487.0,0.000828]
[1727439485435,0.80994356,65488.0,65487.0,0.000828]
[1727439485777,0.79694356,65488.0,65487.0,0.000828]
[1727439486018,0.7283945,65488.0,65487.0,0.000828]
[1727439486239,0.82979324,65488.0,65487.0,0.000828]
[1727439486700,0.8523945,65488.0,65487.0,0.000828]
[1727439487168,0.8533945,65488.0,65487.0,0.000828]
[1727439487387,0.8523945,65488.0,65487.0,0.000828]
[1727439487612,0.8383945,65488.0,65487.0,0.000828]
[1727439487865,0.7523945,65488.0,65487.0,0.000828]
[1727439488089,0.8533945,65488.0,65487.0,0.000828]
[1727439488769,0.9505945,65488.0,65487.0,0.000828]
[1727439490455,1.0278945,65488.0,65487.0,0.000828]
[1727439490904,0.152737,65472.0,65471.0,0.22425812]
[1727439491124,0.152741,65470.0,65465.0,0.0795]
[1727439491347,0.30802894,65470.0,65465.0,0.0795]
[1727439492238,0.152741,65470.0,65469.0,0.169628]
[1727439493398,0.31802894,65470.0,65469.0,0.000828]
[1727439494535,0.32902894,65470.0,65469.0,0.000828]
[1727439494900,0.31802894,65470.0,65469.0,0.000828]
[1727439495116,0.33002894,65470.0,65469.0,0.000828]
[1727439495303,0.32002894,65470.0,65469.0,0.000828]
[1727439495501,0.33202894,65470.0,65469.0,0.000828]
[1727439495740,0.8969406,65470.0,65469.0,1e-06]
[1727439495966,0.8719406,65470.0,65469.0,1e-06]
[1727439496188,0.9992603,65470.0,65469.0,1e-06]
[1727439496406,0.88105834,65470.0,65469.0,1e-06]
[1727439496626,0.39812894,65470.0,65469.0,1e-06]
[1727439496845,0.33702894,65470.0,65469.0,1e-06]
[1727439497100,0.32302894,65470.0,65469.0,1e-06]
[1727439497900,0.33702894,65470.0,65469.0,1e-06]
[1727439498388,0.32302894,65470.0,65469.0,1e-06]
[1727439498610,0.35102894,65470.0,65469.0,1e-06]
[1727439498830,0.33702894,65470.0,65469.0,1e-06]
[1727439499517,0.35102894,65470.0,65469.0,1e-06]
[1727439499974,0.34102894,65470.0,65469.0,1e-06]
[1727439500707,0.70688735,65470.0,65469.0,1e-06]
[1727439500959,0.47777303,65470.0,65469.0,1e-06]
[1727439501421,0.35102894,65470.0,65469.0,1e-06]